fUSD/lending_fUSD_20250623
["ID","MTS","AMOUNT","RATE_DAILY","PERIOD"]
[367116135,1750662735344,-1066.4,0.00030136,3]
[367116136,1750662735354,-572.95,0.00030136,3]
[367116137,1750662735364,-490.0,0.00030136,3]
[367116138,1750662735374,-490.0,0.00030136,3]
[367116139,1750662735383,-1605.51,0.00030136,3]
[367116140,1750662735394,-1690.95,0.00030136,3]
[367116141,1750662735404,-490.0,0.00030136,3]
[367116142,1750662735414,-490.0,0.00030136,3]
[367116143,1750662735424,-1674.28,0.00030136,3]
[367116144,1750662735434,-490.0,0.00030136,3]
[367116145,1750662735444,-638.77,0.00030136,3]
[367116146,1750662735454,-1574.11,0.00030136,3]
[367116147,1750662735464,-378.81,0.00030136,3]
[367116148,1750662735474,-684.38,0.00030136,3]
[367116149,1750662735483,-1278.36,0.00030136,3]
[367116150,1750662735494,-905.6,0.00030136,3]
[367116151,1750662735503,-1682.39,0.00030136,3]
[367116152,1750662735513,-1126.22,0.00030136,3]
[367116153,1750662735526,-1410.38,0.00030136,3]
[367116154,1750662735535,-1883.69,0.00030136,3]
[367116155,1750662735545,-7415.21,0.00030136,3]
[367116156,1750662735554,-2332.56,0.00030136,3]
[367116157,1750662735565,-490.0,0.00030136,3]
[367116158,1750662735575,-1248.93,0.00030136,3]
[367116159,1750662735584,-1449.04,0.00030136,3]
[367116160,1750662735593,-849.69,0.00030136,3]
[367116161,1750662735605,-883.32,0.00030136,3]
[367116162,1750662735614,-587.88,0.00030136,3]
[367116163,1750662735624,-901.3,0.00030136,3]
[367116164,1750662735634,-1164.04,0.00030136,3]
[367116165,1750662735644,-490.0,0.00030136,3]
[367116166,1750662735654,-1753.14,0.00030136,3]
[367116167,1750662735664,-10399.38,0.00030136,3]
[367116168,1750662735674,-4073.96,0.00030136,3]
[367116169,1750662735683,-580.67,0.00030136,3]
[367116170,1750662735693,-1448.46,0.00030136,3]
[367116171,1750662735703,-836.73,0.00030136,3]
[367116172,1750662735712,-918.93,0.00030136,3]
[367116173,1750662735722,-1355.08,0.00030136,3]
[367116174,1750662735732,-526.35,0.00030136,3]
[367116175,1750662735741,-6824.52,0.00030136,3]
[367116176,1750662735751,-1900.51,0.00030136,3]
[367116177,1750662735760,-1016.76,0.00030136,3]
[367116178,1750662735769,-3401.6,0.00030136,3]
[367116179,1750662735779,-3966.47,0.00030136,3]
[367116180,1750662735788,-490.0,0.00030136,3]
[367116181,1750662735798,-490.0,0.00030136,3]
[367116182,1750662735807,-909.73,0.00030136,3]
[367116183,1750662735816,-490.0,0.00030136,3]
[367116184,1750662735826,-608.52,0.00030136,3]
[367116185,1750662735835,-934.07,0.00030136,3]
[367116186,1750662735845,-4949.36,0.00030136,3]
[367116187,1750662735855,-2915.88,0.00030136,3]
[367116188,1750662735865,-490.0,0.00030136,3]
[367116189,1750662735875,-1741.72,0.00030136,3]
[367116190,1750662735884,-1585.93,0.00030136,3]
[367116191,1750662735894,-490.0,0.00030136,3]
[367116192,1750662735903,-490.0,0.00030136,3]
[367116193,1750662735913,-18062.45,0.00030136,3]
[367116194,1750662735922,-814.19,0.00030136,3]
[367116195,1750662735932,-3468.99,0.00030136,3]
[367116196,1750662735942,-1570.58,0.00030136,3]
[367116197,1750662735952,-1672.97,0.00030136,3]
[367116198,1750662735962,-798.22,0.00030136,3]
[367116199,1750662735973,-789.6,0.00030136,3]
[367116200,1750662735983,-1533.06,0.00030136,3]
[367116201,1750662735993,-1681.4,0.00030136,3]
[367116202,1750662736002,-490.0,0.00030136,3]
[367116203,1750662736012,-528.64,0.00030136,3]
[367116204,1750662736022,-1108.02,0.00030136,3]
[367116205,1750662736036,-1980.76,0.00030136,3]
[367116206,1750662736047,-2594.4,0.00030136,3]
[367116207,1750662736057,-490.0,0.00030136,3]
[367116208,1750662736067,-1623.55,0.00030136,3]
[367116209,1750662736077,-490.0,0.00030136,3]
[367116210,1750662736088,-891.21,0.00030136,3]
[367116211,1750662736098,-1019.18,0.00030136,3]
[367116212,1750662736108,-1174.99,0.00030136,3]
[367116213,1750662736118,-3127.29,0.00030136,3]
[367116214,1750662736128,-1569.21,0.00030136,3]
[367116215,1750662736139,-490.0,0.00030136,3]
[367116216,1750662736149,-1940.59,0.00030136,3]
[367116217,1750662736159,-2329.34,0.00030136,3]
[367116218,1750662736169,-664.92,0.00030136,3]
[367116219,1750662736179,-1830.85,0.00030136,3]
[367116220,1750662736189,-1700.21,0.00030136,3]
[367116221,1750662736199,-2769.81,0.00030136,3]
[367116222,1750662736209,-490.0,0.00030136,3]
[367116223,1750662736219,-6713.02,0.00030136,3]
[367116224,1750662736229,-777.56,0.00030136,3]
[367116225,1750662736239,-490.0,0.00030136,3]
[367116226,1750662736249,-2394.73,0.00030136,3]
[367116227,1750662736259,-826.09,0.00030136,3]
[367116228,1750662736270,-490.0,0.00030136,3]
[367116229,1750662736284,-1294.78,0.00030136,3]
[367116230,1750662736294,-1749.09,0.00030136,3]
[367116231,1750662736304,-760.04,0.00030136,3]
[367116232,1750662736314,-490.0,0.00030136,3]
[367116233,1750662736323,-555.71,0.00030136,3]
[367116234,1750662736332,-1626.24,0.00030136,3]
[367116235,1750662736342,-713.4,0.00030136,3]
[367116236,1750662736352,-4056.64,0.00030136,3]
[367116237,1750662736362,-490.0,0.00030136,3]
[367116238,1750662736372,-1498.64,0.00030136,3]
[367116239,1750662736383,-1457.21,0.00030136,3]
[367116240,1750662736393,-490.0,0.00030136,3]
[367116241,1750662736403,-737.54,0.00030136,3]
[367116242,1750662736413,-1307.83,0.00030136,3]
[367116243,1750662736423,-728.06,0.00030136,3]
[367116244,1750662736433,-490.0,0.00030136,3]
[367116245,1750662736443,-1832.35,0.00030136,3]
[367116246,1750662736453,-1380.67,0.00030136,3]
[367116247,1750662736462,-2228.14,0.00030136,3]
[367116248,1750662736472,-2372.02,0.00030136,3]
[367116249,1750662736482,-490.0,0.00030136,3]
[367116250,1750662736492,-3318.96,0.00030136,3]
[367116251,1750662736502,-709.01,0.00030136,3]
[367116252,1750662736511,-862.45,0.00030136,3]
[367116253,1750662736523,-788.8,0.00030136,3]
[367116254,1750662736535,-1200.13,0.00030136,3]
[367116255,1750662736544,-1916.86,0.00030136,3]
[367116256,1750662736554,-678.77,0.00030136,3]
[367116257,1750662736564,-4654.08,0.00030136,3]
[367116258,1750662736574,-1366.52,0.00030136,3]
[367116259,1750662736583,-515.04,0.00030136,3]
[367116260,1750662736593,-788.62,0.00030136,3]
[367116261,1750662736603,-553.78,0.00030136,3]
[367116262,1750662736613,-1578.33,0.00030136,3]
[367116263,1750662736622,-1107.26,0.00030136,3]
[367116264,1750662736631,-498.97,0.00030136,3]
[367116265,1750662736641,-7394.17,0.00030136,3]
[367116266,1750662736651,-1624.99,0.00030136,3]
[367116267,1750662736660,-490.0,0.00030136,3]
[367116268,1750662736669,-1036.64,0.00030136,3]
[367116269,1750662736679,-500.0,0.00030136,3]
[367116270,1750662736689,-490.0,0.00030136,3]
[367116271,1750662736698,-2834.49,0.00030136,3]
[367116272,1750662736707,-12536.04,0.00030136,3]
[367116273,1750662736717,-3543.99,0.00030136,3]
[367116274,1750662736726,-1768.62,0.00030136,3]
[367116275,1750662736736,-497.45,0.00030136,3]
[367116276,1750662736745,-490.0,0.00030136,3]
[367116277,1750662736754,-1619.96,0.00030136,3]
[367116278,1750662736765,-510.41,0.00030136,3]
[367116279,1750662736774,-5190.35,0.00030136,3]
[367116280,1750662736783,-9852.89,0.00030136,3]
[367116281,1750662736793,-490.0,0.00030136,3]
[367116282,1750662736803,-1552.44,0.00030136,3]
[367116283,1750662736812,-814.87,0.00030136,3]
[367116284,1750662736821,-2783.14,0.00030136,3]
[367116285,1750662736831,-1947.91,0.00030136,3]
[367116286,1750662736840,-510.26,0.00030136,3]
[367116287,1750662736850,-1717.08,0.00030136,3]
[367116288,1750662736949,-490.0,0.00030136,3]
[367116289,1750662736958,-2330.84,0.00030136,3]
[367116290,1750662736968,-1630.26,0.00030136,3]
[367116291,1750662736977,-752.02,0.00030136,3]
[367116292,1750662736986,-490.0,0.00030136,3]
[367116293,1750662736995,-1618.67,0.00030136,3]
[367116294,1750662737004,-490.0,0.00030136,3]
[367116295,1750662737013,-1776.65,0.00030136,3]
[367116296,1750662737022,-915.84,0.00030136,3]
[367116297,1750662737031,-1151.97,0.00030136,3]
[367116298,1750662737041,-670.37,0.00030136,3]
[367116299,1750662737050,-3986.65,0.00030136,3]
[367116300,1750662737059,-1591.01,0.00030136,3]
[367116301,1750662737069,-1960.82,0.00030136,3]
[367116302,1750662737078,-6065.53,0.00030136,3]
[367116303,1750662737088,-1605.38,0.00030136,3]
[367116304,1750662737097,-1642.63,0.00030136,3]
[367116305,1750662737106,-798.12,0.00030136,3]
[367116306,1750662737115,-1292.66,0.00030136,3]
[367116307,1750662737125,-2292.5,0.00030136,3]
[367116308,1750662737136,-2903.63,0.00030136,3]
[367116309,1750662737145,-1562.1,0.00030136,3]
[367116310,1750662737155,-4219.23,0.00030136,3]
[367116311,1750662737165,-765.43,0.00030136,3]
[367116312,1750662737175,-1872.32,0.00030136,3]
[367116313,1750662737185,-3240.53,0.00030136,3]
[367116314,1750662737194,-492.32,0.00030136,3]
[367116315,1750662737203,-1684.89,0.00030136,3]
[367116316,1750662737213,-1499.13,0.00030136,3]
[367116317,1750662737223,-1822.31,0.00030136,3]
[367116318,1750662737233,-2262.37,0.00030136,3]
[367116319,1750662737243,-490.0,0.00030136,3]
[367116320,1750662737253,-745.32,0.00030136,3]
[367116321,1750662737263,-490.0,0.00030136,3]
[367116322,1750662737273,-1565.33,0.00030136,3]
[367116323,1750662737283,-3248.59,0.00030136,3]
[367116324,1750662737293,-1599.78,0.00030136,3]
[367116325,1750662737303,-1190.83,0.00030136,3]
[367116326,1750662737313,-795.18,0.00030136,3]
[367116327,1750662737323,-638.67,0.00030136,3]
[367116328,1750662737333,-8785.1,0.00030136,3]
[367116329,1750662737343,-849.6,0.00030136,3]
[367116330,1750662737353,-1583.66,0.00030136,3]
[367116331,1750662737363,-1787.94,0.00030136,3]
[367116332,1750662737373,-1335.88,0.00030136,3]
[367116333,1750662737384,-1444.68,0.00030136,3]
[367116334,1750662737394,-948.02,0.00030136,3]
[367116335,1750662737404,-490.0,0.00030136,3]
[367116336,1750662737413,-507.9,0.00030136,3]
[367116337,1750662737423,-3963.91,0.00030136,3]
[367116338,1750662737432,-1578.99,0.00030136,3]
[367116339,1750662737442,-1445.82,0.00030136,3]
[367116340,1750662737452,-1285.59,0.00030136,3]
[367116341,1750662737462,-490.0,0.00030136,3]
[367116342,1750662737472,-490.0,0.00030136,3]
[367116343,1750662737483,-514.05475594,0.00030136,3]
[367116344,1750662737492,-490.0,0.00030136,3]
[367116345,1750662737502,-728.45,0.00030136,3]
[367116346,1750662737511,-806.96,0.00030136,3]
[367116347,1750662737523,-1797.81,0.00030136,3]
[367116348,1750662737532,-1831.64,0.00030136,3]
[367116349,1750662737542,-1432.05,0.00030136,3]
[367116350,1750662737551,-919.07,0.00030136,3]
[367116351,1750662737561,-490.0,0.00030136,3]
[367116352,1750662737571,-14900.62,0.00030136,3]
[367116353,1750662737580,-1833.67,0.00030136,3]
[367116354,1750662737590,-2078.39,0.00030136,3]
[367116355,1750662737600,-510.45,0.00030136,3]
[367116356,1750662737610,-490.0,0.00030136,3]
[367116357,1750662737620,-4833.93,0.00030136,3]
[367116358,1750662737629,-1601.31,0.00030136,3]
[367116359,1750662737640,-759.06,0.00030136,3]
[367116360,1750662737650,-873.41,0.00030136,3]
[367116361,1750662737659,-4669.42,0.00030136,3]
[367116362,1750662737669,-791.68,0.00030136,3]
[367116363,1750662737679,-1693.53,0.00030136,3]
[367116364,1750662737688,-990.18,0.00030136,3]
[367116365,1750662737698,-1034.99,0.00030136,3]
[367116366,1750662737707,-1620.6,0.00030136,3]
[367116367,1750662737718,-1653.45,0.00030136,3]
[367116368,1750662737728,-1389.7,0.00030136,3]
[367116369,1750662737738,-3451.15,0.00030136,3]
[367116370,1750662737747,-497.36196264,0.00030136,3]
[367116371,1750662737757,-490.0,0.00030136,3]
[367116372,1750662737766,-2416.24,0.00030136,3]
[367116373,1750662737776,-993.54,0.00030136,3]
[367116374,1750662737786,-566.41,0.00030136,3]
[367116375,1750662737795,-11090.94,0.00030136,3]
[367116376,1750662737804,-1221.42,0.00030136,3]
[367116377,1750662737815,-1799.28,0.00030136,3]
[367116378,1750662737824,-1701.67,0.00030136,3]
[367116379,1750662737834,-2070.18,0.00030136,3]
[367116380,1750662737843,-1378.47,0.00030136,3]
[367116381,1750662737853,-1087.15,0.00030136,3]
[367116382,1750662737862,-1736.17,0.00030136,3]
[367116383,1750662737871,-490.0,0.00030136,3]
[367116384,1750662737881,-1816.97,0.00030136,3]
[367116385,1750662737891,-490.0,0.00030136,3]
[367116386,1750662737900,-709.09,0.00030136,3]
[367116387,1750662737910,-1834.95,0.00030136,3]
[367116388,1750662737919,-1672.0,0.00030136,3]
[367116389,1750662737929,-1571.12,0.00030136,3]
[367116390,1750662737938,-1351.61,0.00030136,3]
[367116391,1750662737948,-490.0,0.00030136,3]
[367116392,1750662737957,-490.0,0.00030136,3]
[367116393,1750662737967,-4884.01,0.00030136,3]
[367116394,1750662737976,-1729.07,0.00030136,3]
[367116395,1750662737986,-8073.75,0.00030136,3]
[367116396,1750662737996,-1652.26,0.00030136,3]
[367116397,1750662738006,-718.8,0.00030136,3]
[367116398,1750662738015,-490.0,0.00030136,3]
[367116399,1750662738025,-867.32,0.00030136,3]
[367116400,1750662738034,-30050.84,0.00030136,3]
[367116401,1750662738044,-490.0,0.00030136,3]
[367116402,1750662738053,-1482.76,0.00030136,3]
[367116403,1750662738063,-1513.2,0.00030136,3]
[367116404,1750662738072,-1869.9,0.00030136,3]
[367116405,1750662738082,-535.70755009,0.00030136,3]
[367116406,1750662738091,-825.47,0.00030136,3]
[367116407,1750662738100,-1291.21,0.00030136,3]
[367116408,1750662738110,-490.0,0.00030136,3]
[367116409,1750662738119,-529.57,0.00030136,3]
[367116410,1750662738129,-1000.93,0.00030136,3]
[367116411,1750662738139,-1013.98,0.00030136,2]
[367116412,1750662738148,-749.71,0.00030136,3]
[367116413,1750662738158,-2626.45,0.00030136,3]
[367116414,1750662738167,-1301.95,0.00030136,3]
[367116415,1750662738177,-914.97,0.00030136,3]
[367116416,1750662738187,-5331.91,0.00030136,3]
[367116417,1750662738196,-6188.74,0.00030136,3]
[367116418,1750662738206,-2204.74,0.00030136,3]
[367116419,1750662738216,-733.17,0.00030136,3]
[367116420,1750662738225,-742.07,0.00030136,3]
[367116421,1750662738234,-1553.91,0.00030136,3]
[367116422,1750662738244,-866.05,0.00030136,3]
[367116423,1750662738253,-1201.89,0.00030136,3]
[367116424,1750662738262,-5637.09,0.00030136,3]
[367116425,1750662738272,-716.87,0.00030136,3]
[367116426,1750662738281,-490.0,0.00030136,3]
[367116427,1750662738292,-2465.19,0.00030136,3]
[367116428,1750662738302,-1651.87,0.00030136,3]
[367116429,1750662738312,-1607.85,0.00030136,3]
[367116430,1750662738322,-572.05,0.00030136,3]
[367116431,1750662738332,-1906.99,0.00030136,3]
[367116432,1750662738341,-1536.26,0.00030136,3]
[367116433,1750662738351,-2965.58,0.00030136,3]
[367116434,1750662738360,-1920.56,0.00030136,3]
[367116435,1750662738370,-1131.73,0.00030136,3]
[367116436,1750662738379,-764.72,0.00030136,3]
[367116437,1750662738389,-594.04,0.00030136,3]
[367116438,1750662738399,-490.0,0.00030136,3]
[367116439,1750662738408,-1385.46,0.00030136,3]
[367116440,1750662738418,-5434.37,0.00030137,2]
[367116441,1750662738427,-242.81441539,0.00030137,2]
[367116442,1750662738437,-1258.03765544,0.00030176,22]
[367116443,1750662738447,-201.3339867,0.00030247,30]
[367116444,1750662738457,-500.0,0.00030255,7]
[367116445,1750662738466,-207.0,0.0003028,30]
[367116446,1750662738476,-1511.09276146,0.0003031,2]
[367116447,1750662738485,-201.3339867,0.00030356,30]
[367116448,1750662738494,-1000.0,0.00030367,2]
[367116449,1750662738504,-187.59,0.00030371,120]
[367116450,1750662738514,-2154.43,0.000304,2]
[367116451,1750662738526,-5455.753665,0.0003041,3]
[367116452,1750662738535,-906.91,0.0003041,3]
[367116453,1750662738544,-490.0,0.0003041,3]
[367116454,1750662738554,-490.0,0.0003041,3]
[367116455,1750662738564,-733.39,0.0003041,3]
[367116456,1750662738574,-490.0,0.0003041,3]
[367116457,1750662738583,-490.0,0.0003041,3]
[367116458,1750662738592,-490.0,0.0003041,3]
[367116459,1750662738602,-490.0,0.0003041,3]
[367116460,1750662738612,-252.921479,0.0003041,3]
[367116461,1750662738621,-958.78,0.0003041,3]
[367116462,1750662738631,-972.11,0.0003041,3]
[367116463,1750662738641,-490.0,0.0003041,3]
[367116464,1750662738650,-2591.829598,0.0003041,3]
[367116465,1750662738660,-615.11,0.0003041,3]
[367116466,1750662738670,-804.23,0.0003041,3]
[367116467,1750662738679,-490.0,0.0003041,3]
[367116468,1750662738689,-490.0,0.0003041,3]
[367116469,1750662738699,-490.0,0.0003041,3]
[367116470,1750662738709,-490.0,0.0003041,3]
[367116471,1750662738719,-1075.31,0.0003041,3]
[367116472,1750662738728,-811.41,0.0003041,3]
[367116473,1750662738738,-663.45,0.0003041,3]
[367116474,1750662738748,-490.0,0.0003041,3]
[367116475,1750662738758,-695.49,0.0003041,3]
[367116476,1750662738767,-490.0,0.0003041,3]
[367116477,1750662738777,-977.66,0.0003041,3]
[367116478,1750662738787,-833.21,0.0003041,3]
[367116479,1750662738796,-591.25,0.0003041,3]
[367116480,1750662738805,-690.16,0.0003041,3]
[367116481,1750662738815,-1109.36,0.0003041,3]
[367116482,1750662738824,-490.0,0.0003041,3]
[367116483,1750662738833,-526.92,0.0003041,3]
[367116484,1750662738843,-519.11,0.0003041,3]
[367116485,1750662738852,-490.0,0.0003041,3]
[367116486,1750662738861,-970.12,0.0003041,3]
[367116487,1750662738871,-1478.36,0.0003041,3]
[367116488,1750662738880,-490.0,0.0003041,3]
[367116489,1750662738889,-490.0,0.0003041,3]
[367116490,1750662738899,-1376.6,0.0003041,3]
[367116491,1750662738908,-490.0,0.0003041,3]
[367116492,1750662738917,-889.62,0.0003041,3]
[367116493,1750662738927,-490.0,0.0003041,3]
[367116494,1750662738936,-1155.19,0.0003041,3]
[367116495,1750662738946,-490.0,0.0003041,3]
[367116496,1750662738955,-495.01,0.0003041,3]
[367116497,1750662738964,-490.0,0.0003041,3]
[367116498,1750662738974,-668.52,0.0003041,3]
[367116499,1750662738983,-623.87477456,0.0003041,3]
[367116500,1750662738992,-698.01,0.0003041,3]
[367116501,1750662739001,-586.16,0.0003041,3]
[367116502,1750662739010,-490.0,0.0003041,3]
[367116503,1750662739019,-490.0,0.0003041,3]
[367116504,1750662739029,-644.39,0.0003041,3]
[367116505,1750662739038,-617.7,0.0003041,3]
[367116506,1750662739047,-826.8,0.0003041,3]
[367116507,1750662739056,-490.0,0.0003041,3]
[367116508,1750662739065,-490.0,0.0003041,3]
[367116509,1750662739075,-490.0,0.0003041,3]
[367116510,1750662739085,-626.46,0.0003041,3]
[367116511,1750662739095,-841.55,0.0003041,3]
[367116512,1750662739106,-625.27,0.0003041,3]
[367116513,1750662739116,-1584.78,0.0003041,3]
[367116514,1750662739125,-490.0,0.0003041,3]
[367116515,1750662739135,-490.0,0.0003041,3]
[367116516,1750662739144,-490.0,0.0003041,3]
[367116517,1750662739154,-1089.25,0.0003041,3]
[367116518,1750662739163,-914.26,0.0003041,3]
[367116519,1750662739173,-777.39,0.0003041,3]
[367116520,1750662739183,-667.3,0.0003041,3]
[367116521,1750662739192,-1172.55,0.0003041,3]
[367116522,1750662739201,-857.69,0.0003041,3]
[367116523,1750662739211,-601.26,0.0003041,3]
[367116524,1750662739220,-654.18,0.0003041,3]
[367116525,1750662739230,-1486.14,0.0003041,3]
[367116526,1750662739240,-563.6,0.0003041,3]
[367116527,1750662739249,-641.56,0.0003041,3]
[367116528,1750662739258,-2328.1,0.0003041,3]
[367116529,1750662739268,-490.0,0.0003041,3]
[367116530,1750662739278,-1714.75,0.0003041,3]
[367116531,1750662739287,-490.0,0.0003041,3]
[367116532,1750662739296,-2984.61,0.0003041,3]
[367116533,1750662739306,-834.55,0.0003041,3]
[367116534,1750662739316,-1666.5,0.0003041,3]
[367116535,1750662739325,-490.0,0.0003041,2]
[367116536,1750662739334,-579.07,0.0003041,3]
[367116537,1750662739344,-774.87,0.0003041,3]
[367116538,1750662739354,-198.016965,0.0003041,3]
[367116539,1750662739364,-490.0,0.0003041,3]
[367116540,1750662739373,-523.64,0.0003041,3]
[367116541,1750662739382,-1685.1,0.0003041,3]
[367116542,1750662739392,-685.83,0.0003041,3]
[367116543,1750662739401,-845.32,0.0003041,3]
[367116544,1750662739411,-490.0,0.0003041,3]
[367116545,1750662739420,-490.0,0.0003041,3]
[367116546,1750662739429,-1003.013708,0.0003041,3]
[367116547,1750662739438,-407.03,0.0003041,3]
[367116548,1750662739447,-490.0,0.0003041,3]
[367116549,1750662739456,-620.28,0.0003041,3]
[367116550,1750662739465,-692.18,0.0003041,3]
[367116551,1750662739474,-583.42,0.0003041,3]
[367116552,1750662739483,-490.0,0.0003041,3]
[367116553,1750662739493,-1382.11,0.0003041,3]
[367116554,1750662739503,-490.0,0.0003041,3]
[367116555,1750662739513,-957.53,0.0003041,3]
[367116556,1750662739524,-1520.85,0.0003041,3]
[367116557,1750662739533,-852.4,0.0003041,3]
[367116558,1750662739543,-1514.64,0.0003041,3]
[367116559,1750662739553,-564.98,0.0003041,3]
[367116560,1750662739562,-1413.76,0.0003041,3]
[367116561,1750662739572,-621.88,0.0003041,3]
[367116562,1750662739581,-643.76,0.0003041,3]
[367116563,1750662739590,-1486.85,0.0003041,3]
[367116564,1750662739599,-605.57,0.0003041,3]
[367116565,1750662739609,-765.6,0.0003041,3]
[367116566,1750662739619,-329.93341826,0.0003041,3]
[367116567,1750662739629,-635.87,0.0003041,3]
[367116568,1750662739640,-490.0,0.0003041,3]
[367116569,1750662739649,-748.29,0.0003041,3]
[367116570,1750662739659,-559.87,0.0003041,3]
[367116571,1750662739669,-521.1,0.0003041,3]
[367116572,1750662739678,-702.32,0.0003041,3]
[367116573,1750662739688,-1437.96,0.0003041,3]
[367116574,1750662739698,-933.29,0.0003041,3]
[367116575,1750662739708,-623.74,0.0003041,3]
[367116576,1750662739717,-1229.23,0.0003041,3]
[367116577,1750662739727,-1240.62,0.0003041,3]
[367116578,1750662739736,-490.0,0.0003041,3]
[367116579,1750662739746,-1044.91,0.0003041,3]
[367116580,1750662739755,-636.16,0.0003041,3]
[367116581,1750662739765,-490.92,0.0003041,3]
[367116582,1750662739774,-583.46,0.0003041,3]
[367116583,1750662739783,-1648.05,0.0003041,3]
[367116584,1750662739792,-745.48,0.0003041,3]
[367116585,1750662739801,-1819.02,0.0003041,3]
[367116586,1750662739811,-1025.74,0.0003041,3]
[367116587,1750662739820,-507.64,0.0003041,3]
[367116588,1750662739829,-1801.52,0.0003041,3]
[367116589,1750662739839,-1776.13,0.0003041,3]
[367116590,1750662739848,-803.35,0.0003041,3]
[367116591,1750662739858,-1305.95,0.0003041,3]
[367116592,1750662739868,-567.06592496,0.0003041,3]
[367116593,1750662739877,-825.12,0.0003041,3]
[367116594,1750662739886,-553.17,0.0003041,3]
[367116595,1750662739897,-1449.74,0.0003041,3]
[367116596,1750662739907,-1184.6,0.0003041,3]
[367116597,1750662739917,-2077.31,0.0003041,3]
[367116598,1750662739926,-903.1,0.0003041,3]
[367116599,1750662739935,-1228.76,0.0003041,3]
[367116600,1750662739944,-840.82,0.0003041,3]
[367116601,1750662739953,-972.48,0.0003041,3]
[367116602,1750662739962,-1017.63,0.0003041,3]
[367116603,1750662739972,-490.0,0.0003041,3]
[367116604,1750662739981,-490.0,0.0003041,3]
[367116605,1750662739990,-698.82,0.0003041,3]
[367116606,1750662739999,-1683.09,0.0003041,3]
[367116607,1750662740008,-614.18,0.0003041,3]
[367116608,1750662740018,-1068.5,0.0003041,3]
[367116609,1750662740033,-492.43,0.0003041,3]
[367116610,1750662740042,-490.0,0.0003041,3]
[367116611,1750662740052,-899.45,0.0003041,3]
[367116612,1750662740061,-490.0,0.0003041,3]
[367116613,1750662740070,-1636.32,0.0003041,3]
[367116614,1750662740079,-1018.31,0.0003041,3]
[367116615,1750662740088,-1034.85,0.0003041,3]
[367116616,1750662740098,-490.0,0.0003041,3]
[367116617,1750662740107,-636.43,0.0003041,3]
[367116618,1750662740117,-514.73,0.0003041,3]
[367116619,1750662740127,-1597.54,0.0003041,3]
[367116620,1750662740137,-878.08,0.0003041,3]
[367116621,1750662740147,-490.0,0.0003041,3]
[367116622,1750662740156,-933.44,0.0003041,3]
[367116623,1750662740166,-490.0,0.0003041,3]
[367116624,1750662740175,-980.14,0.0003041,3]
[367116625,1750662740185,-1351.29,0.0003041,3]
[367116626,1750662740194,-490.0,0.0003041,3]
[367116627,1750662740204,-490.0,0.0003041,3]
[367116628,1750662740214,-1021.72,0.0003041,3]
[367116629,1750662740224,-490.0,0.0003041,3]
[367116630,1750662740234,-490.0,0.0003041,3]
[367116631,1750662740243,-2515.92,0.0003041,3]
[367116632,1750662740253,-563.49,0.0003041,3]
[367116633,1750662740262,-718.42,0.0003041,3]
[367116634,1750662740271,-973.74,0.0003041,3]